bitfinex-derivatives/quotes_ETHF0:USTF0_20241017
["timestamp","ask_amount","ask_price","bid_price","bid_amount"]
[1729128340700,1.62168,2620.1,2620.0,0.78558]
[1729128340890,1.24,2620.1,2620.0,0.78558]
[1729128341804,1.62168,2620.1,2620.0,0.78558]
[1729128343902,1.24,2620.1,2620.0,0.78558]
[1729128344206,5.89747,2620.2,2620.1,0.38168]
[1729128344405,5.89747,2620.2,2620.1,1.23048]
[1729128346404,5.89747,2620.2,2620.1,0.8488]
[1729128347000,5.89747,2620.2,2620.1,0.81058]
[1729128347500,5.89747,2620.2,2620.1,3.62537544]
[1729128347907,5.89747,2620.2,2620.1,3.24369544]
[1729128350903,5.89747,2620.2,2620.1,3.24365075]
[1729128354111,5.89747,2620.2,2620.1,1.74113429]
[1729128355514,5.89747,2620.2,2620.1,0.4289]
[1729128357018,5.5158,2620.2,2620.0,0.4039]
[1729128357231,0.38171,2619.9,2619.8,0.3993]
[1729128357518,0.38171,2619.9,2619.7,0.38173]
[1729128357519,0.38172,2619.8,2619.7,1.88424646]
[1729128357714,1.17222,2619.8,2619.7,1.69391667]
[1729128358310,1.17222,2619.8,2619.7,1.69393634]
[1729128358513,0.7905,2619.8,2619.7,0.38173]
[1729128358721,1.17222,2619.8,2619.7,2.93396504]
[1729128358918,1.17222,2619.8,2619.7,1.69396504]
[1729128359620,1.17222,2619.8,2619.7,3.1964815]
[1729128360023,1.17222,2619.8,2619.7,1.69396504]
[1729128360414,2.41222,2619.8,2619.7,1.69396504]
[1729128360919,1.17222,2619.8,2619.7,2.93396504]
[1729128361715,1.17222,2619.8,2619.7,1.62173]
[1729128361912,1.17222,2619.8,2619.7,2.9339451]
[1729128362316,2.308,2620.0,2619.7,2.5522151]
[1729128362517,0.38172,2619.9,2619.8,4.72380262]
[1729128362714,0.38172,2619.9,2619.8,5.14240262]
[1729128364030,0.38172,2619.9,2619.8,6.38237269]
[1729128365823,0.38172,2619.9,2619.8,8.88646346]
[1729128366217,0.38172,2619.9,2619.8,6.38237269]
[1729128367320,0.38172,2619.9,2619.8,8.88646346]
[1729128368714,0.38172,2619.9,2619.8,8.88726668]
[1729128370416,1.6292,2620.0,2619.8,6.12084441]
[1729128370623,2.01091,2620.0,2619.9,0.38171]
[1729128370824,2.01091,2620.0,2619.9,0.78131]
[1729128379745,2.01091,2620.0,2619.9,0.3996]
[1729128379931,2.01091,2620.0,2619.9,0.38171]
[1729128380128,1.6292,2620.0,2619.8,0.4055]
[1729128380338,0.38175,2619.6,2619.5,2.88753023]
[1729128380536,1.62175,2619.6,2619.5,0.50114248]
[1729128380931,1.62175,2619.6,2619.5,0.38175]
[1729128381329,1.62175,2619.6,2619.5,1.62175]
[1729128381539,0.38175,2619.6,2619.5,1.62175]
[1729128382736,0.78255,2619.6,2619.5,1.62175]
[1729128382935,2.02255,2619.6,2619.5,0.38175]
[1729128383338,2.02255,2619.6,2619.5,1.62175]
[1729128383837,2.02255,2619.6,2619.5,8.0645785]
[1729128385242,1.44945778,2619.6,2619.5,8.0645785]
[1729128385838,1.44945778,2619.6,2619.5,5.55964736]
[1729128386246,1.83120778,2619.6,2619.5,5.55964736]
[1729128387647,0.59120778,2619.6,2619.5,5.55964736]
[1729128387837,0.59120778,2619.6,2619.5,8.0645785]
[1729128388246,0.59120778,2619.6,2619.5,8.05590931]
[1729128390543,0.20945778,2619.6,2619.5,8.05590931]
[1729128391242,0.59120778,2619.6,2619.5,8.05590931]
[1729128391444,0.59120778,2619.6,2619.5,5.55097817]
[1729128391644,0.59120778,2619.6,2619.5,8.05590931]
[1729128392838,0.3937,2619.7,2619.6,0.38175]
[1729128393044,0.38173,2619.8,2619.7,0.38172]
[1729128393238,0.38173,2619.8,2619.7,1.62172]
[1729128393545,0.38173,2619.8,2619.7,2.43532]
[1729128393754,0.38173,2619.8,2619.7,3.7448125]
[1729128394150,0.38173,2619.8,2619.7,5.24695467]
[1729128394350,0.38173,2619.8,2619.7,3.7448125]
[1729128394552,0.38173,2619.8,2619.7,5.24695467]
[1729128395449,1.6577,2619.9,2619.8,0.38171]
[1729128395450,0.38171,2619.9,2619.8,0.38171]
[1729128395649,0.38171,2619.9,2619.8,2.01261]
[1729128395946,5.9061,2620.0,2619.8,1.6309]
[1729128396154,6.28781,2620.0,2619.9,0.38171]
[1729128397855,6.69171,2620.0,2619.9,0.38171]
[1729128398250,0.38171,2619.9,2619.8,0.77261]
[1729128398447,1.62171,2619.9,2619.8,0.3909]
[1729128398647,1.62171,2619.9,2619.7,0.80303]
[1729128398648,0.38172,2619.8,2619.7,0.80303]
[1729128398952,0.38172,2619.8,2619.7,2.11259981]
[1729128398953,1.62172,2619.8,2619.7,2.11259981]
[1729128399656,1.62172,2619.8,2619.7,3.35263121]
[1729128400057,1.62172,2619.8,2619.7,5.35548922]
[1729128400449,0.38171,2619.9,2619.7,4.97375922]
[1729128400742,1.62171,2619.9,2619.8,1.69132121]
[1729128402665,1.62171,2619.9,2619.8,1.69133839]
[1729128407369,1.62171,2619.9,2619.8,1.30961839]
[1729128407560,1.62171,2619.9,2619.8,1.69140142]
[1729128407965,1.62171,2619.9,2619.8,3.19369439]
[1729128410263,1.62171,2619.9,2619.8,2.81197439]
[1729128411568,3.0992,2620.0,2619.8,2.81197439]
[1729128411765,0.5,3700.0,2619.9,2.54968142]
[1729128411766,3.2078,2620.4,2619.9,2.54968142]
[1729128411965,0.38168,2620.1,2620.0,2.07857142]
[1729128412170,1.62168,2620.1,2620.0,2.48827142]
[1729128412366,1.62168,2620.1,2620.0,4.49112943]
[1729128412665,1.62168,2620.1,2620.0,2.48827142]
[1729128414868,0.8258,2620.5,2620.0,7.16338142]
[1729128415074,0.38165,2620.4,2620.3,1.24]
[1729128415373,0.38165,2620.4,2620.3,1.62165]
[1729128415670,0.38165,2620.4,2620.3,1.24]
[1729128418868,1.62165,2620.4,2620.3,1.24]
[1729128419071,1.24,2620.4,2620.2,1.24]
[1729128419366,0.38166,2620.3,2620.2,1.24]
[1729128419561,1.62166,2620.3,2620.2,1.24]
[1729128419776,1.62166,2620.3,2620.1,4.82947]
[1729128419964,1.62166,2620.3,2620.2,1.24]
[1729128420767,1.62166,2620.3,2620.1,3.2078]
[1729128420768,1.24,2620.3,2620.1,3.2078]
[1729128420972,1.62166,2620.2,2620.1,3.58948]
[1729128421274,1.62166,2620.2,2620.1,0.38168]
[1729128421468,0.38168,2620.1,2620.0,2.00889]
[1729128421664,1.62168,2620.1,2620.0,0.3872]
[1729128421865,0.38171,2619.9,2619.8,4.4478]
[1729128422170,1.62171,2619.9,2619.8,4.82952]
[1729128422368,0.38171,2619.9,2619.8,4.82952]
[1729128422771,0.38171,2619.9,2619.8,1.62172]
[1729128423070,0.38171,2619.9,2619.8,4.43196124]
[1729128424079,0.3817,2620.0,2619.9,0.38169]
[1729128424378,0.3817,2620.0,2619.9,4.85395027]
[1729128424875,0.4168,2620.3,2619.9,4.47226027]
[1729128425075,1.44361,2620.6,2620.5,0.38162]
[1729128425268,0.38161,2620.6,2620.5,1.62162]
[1729128425469,1.62161,2620.6,2620.5,1.62162]
[1729128425975,1.62161,2620.6,2620.4,1.92475789]
[1729128425976,0.38162,2620.5,2620.4,0.80602]
[1729128426273,0.38162,2620.5,2620.4,2.11359334]
[1729128426579,0.38162,2620.5,2620.4,0.80602]
[1729128428275,1.24,2620.6,2620.4,0.4244]
[1729128428583,1.62161,2620.6,2620.5,0.38162]
[1729128428877,1.62161,2620.6,2620.5,0.3976]
[1729128432682,1.24,2620.6,2620.5,0.77922]
[1729128433179,1.62161,2620.6,2620.5,0.77922]
[1729128433376,1.24,2620.6,2620.5,2.01922]
[1729128433578,1.62161,2620.6,2620.5,2.01922]
[1729128433783,1.24,2620.6,2620.5,2.01922]
[1729128434171,1.24,2620.6,2620.5,0.77922]
[1729128434172,1.62161,2620.6,2620.5,0.77922]
[1729128434376,1.62161,2620.6,2620.5,0.3976]
[1729128435271,1.62161,2620.6,2620.5,0.77922]
[1729128436981,1.24,2620.6,2620.5,2.01922]
[1729128437379,1.62161,2620.6,2620.5,2.01922]
[1729128437880,1.62161,2620.6,2620.5,0.3976]
[1729128439885,1.62161,2620.6,2620.5,0.77922]
[1729128440187,1.62161,2620.6,2620.5,0.3976]
[1729128445993,1.62161,2620.6,2620.5,0.77922]
[1729128446194,1.62161,2620.6,2620.5,0.3976]
[1729128448494,1.62161,2620.6,2620.5,0.77922]
[1729128448884,0.3943,2620.7,2620.5,1.6376]
[1729128449085,0.38159,2620.8,2620.7,0.38159]
[1729128449293,0.38159,2620.8,2620.7,2.04169]
[1729128449491,1.62159,2620.8,2620.7,1.6601]
[1729128449994,2.04819,2620.8,2620.7,1.6601]
[1729128450489,2.04819,2620.8,2620.7,2.04169]
[1729128450889,2.04819,2620.8,2620.7,1.6601]
[1729128451097,1.6666,2620.8,2620.4,0.4244]
[1729128451300,1.62162,2620.5,2620.4,0.3895]
[1729128451490,0.38162,2620.5,2620.4,1.6295]
[1729128451995,0.80822,2620.5,2620.4,1.6295]
[1729128452194,0.80822,2620.5,2620.4,6.82583542]
[1729128452401,0.80822,2620.5,2620.4,8.13256389]
[1729128452695,0.80822,2620.5,2620.4,8.1327103]
[1729128453290,0.38162,2620.5,2620.4,8.63437277]
[1729128453490,0.38162,2620.5,2620.4,7.13401488]
[1729128453685,0.4155,2620.7,2620.4,8.63437277]
[1729128453902,0.79709,2620.7,2620.6,1.24]
[1729128455196,2.03709,2620.7,2620.6,2.23939566]
[1729128455497,2.03709,2620.7,2620.6,1.24]
[1729128456496,2.03709,2620.7,2620.6,0.99939566]
[1729128459489,0.38161,2620.6,2620.5,0.99939566]
[1729128459796,8.6553,2620.6,2620.3,0.99939566]
[1729128459998,1.62164,2620.4,2620.3,0.99939566]
[1729128460296,1.62164,2620.4,2620.2,1.24]
[1729128460502,1.38136,2620.5,2620.0,1.41029566]
[1729128460503,0.77715,2620.3,2620.0,1.41029566]
[1729128460692,0.77715,2620.3,2620.2,1.24]
[1729128460902,0.77715,2620.3,2620.2,1.62166]
[1729128462794,0.38165,2620.3,2620.2,1.62166]
[1729128465901,0.38165,2620.4,2620.3,0.38164]
[1729128466205,0.38165,2620.4,2620.3,2.05074]
[1729128467406,0.38165,2620.4,2620.3,5.36090001]
[1729128467906,0.38165,2620.4,2620.3,4.12090001]
[1729128468620,0.38165,2620.4,2620.3,7.13353077]
[1729128469400,0.38165,2620.4,2620.3,5.13067276]
[1729128470811,0.8433,2620.5,2620.3,5.98903276]
[1729128471116,0.38161,2620.6,2620.5,0.38161]
[1729128471310,0.38161,2620.6,2620.5,5.54424276]
[1729128471506,0.38161,2620.6,2620.5,8.0491739]
[1729128472301,0.38161,2620.6,2620.5,5.54424276]
[1729128472505,0.38161,2620.6,2620.5,4.30424276]
[1729128472712,0.38161,2620.6,2620.5,6.8091739]
[1729128473304,0.38161,2620.6,2620.5,6.81106963]
[1729128473508,0.38161,2620.6,2620.5,5.54613849]
[1729128473821,0.38161,2620.6,2620.5,8.05106963]
[1729128474420,0.38161,2620.6,2620.5,5.54613849]
[1729128474611,0.38161,2620.6,2620.5,5.16452849]
[1729128475312,0.38161,2620.6,2620.5,7.16746354]
[1729128475820,0.38161,2620.6,2620.5,7.54908354]
[1729128476322,0.38161,2620.6,2620.5,5.54614849]
[1729128476613,0.38161,2620.6,2620.5,7.54896455]
[1729128477017,0.38161,2620.6,2620.5,7.16734455]
[1729128477418,0.38161,2620.6,2620.5,7.16733398]
[1729128477617,0.38161,2620.6,2620.5,7.54895398]
[1729128477916,0.38161,2620.6,2620.5,7.54892865]
[1729128478213,0.38161,2620.6,2620.5,1.62162]
[1729128478421,0.38161,2620.6,2620.5,7.16688102]
[1729128479414,0.38161,2620.6,2620.5,4.55081206]
[1729128480923,0.38161,2620.6,2620.5,4.93243206]
[1729128481521,0.38161,2620.6,2620.5,3.62439758]
[1729128481719,0.38161,2620.6,2620.5,4.93239196]
[1729128482525,0.38161,2620.6,2620.5,1.62162]
[1729128484516,0.38161,2620.6,2620.5,1.24]
[1729128485715,0.38161,2620.6,2620.5,1.62162]
[1729128490417,0.38161,2620.6,2620.5,2.93001293]
[1729128490626,0.38161,2620.6,2620.5,5.54679879]
[1729128491020,0.38161,2620.6,2620.5,7.54936937]
[1729128491421,0.38161,2620.6,2620.5,5.16524483]
[1729128491718,0.38161,2620.6,2620.5,7.54941138]
[1729128492223,0.38161,2620.6,2620.5,5.54686483]
[1729128493832,0.38161,2620.6,2620.5,7.549411]
[1729128495831,0.38161,2620.6,2620.5,5.54686483]
[1729128496031,0.38161,2620.6,2620.5,7.54942366]
[1729128496232,0.38161,2620.6,2620.5,5.54680663]
[1729128497637,0.38161,2620.6,2620.5,7.54936557]
[1729128499134,0.38161,2620.6,2620.5,7.54929662]
[1729128500528,0.38161,2620.6,2620.5,7.16767662]
[1729128501128,0.38161,2620.6,2620.5,7.16771317]
[1729128501336,1.62161,2620.6,2620.5,1.30838474]
[1729128501532,1.62161,2620.6,2620.5,2.81037678]
[1729128501930,11.43761,2620.6,2620.5,2.81037678]
[1729128502235,4.77009,2620.5,2619.9,2.00255894]
[1729128502535,0.38168,2620.2,2620.1,1.24]
[1729128503137,0.38168,2620.1,2620.0,4.42183894]
[1729128503437,0.38168,2620.1,2620.0,2.41929]
[1729128504031,0.79688,2620.1,2620.0,2.0376]
[1729128510855,0.4152,2620.1,2620.0,2.41929]
[1729128511149,0.38166,2620.3,2620.0,5.8544]
[1729128511336,0.38165,2620.3,2620.2,1.24]
[1729128511941,1.62165,2620.3,2620.2,1.24]
[1729128515747,0.38166,2620.2,2620.1,2.03548]
[1729128523347,0.4028,2620.4,2620.1,2.03548]
[1729128523551,5.70211607,2620.8,2620.3,1.24]
[1729128523851,3.2078,2620.8,2620.7,1.62159]
[1729128524045,2.49431607,2621.2,2620.7,1.24]
[1729128524046,1.055,2621.1,2620.7,1.24]
[1729128524246,1.055,2621.1,2621.0,4.4478]
[1729128524247,1.43654,2621.1,2621.0,4.4478]
[1729128524652,1.43654,2621.1,2621.0,4.864]
[1729128524845,0.38154,2621.1,2621.0,4.864]
[1729128525048,0.38154,2621.1,2621.0,1.6562]
[1729128525249,1.62154,2621.1,2621.0,0.4162]
[1729128525452,1.24,2621.1,2620.8,2.0786]
[1729128525648,0.38156,2620.9,2620.8,0.8386]
[1729128525848,1.62156,2620.9,2620.8,2.0786]
[1729128527650,4.82936,2620.9,2620.8,2.0786]
[1729128528258,4.82936,2620.9,2620.8,0.8386]
[1729128528459,0.38161,2620.6,2620.5,0.4162]
[1729128528755,0.38161,2620.6,2620.2,0.4045]
[1729128528756,0.38165,2620.3,2620.2,0.4045]
[1729128528952,0.38168,2620.1,2620.0,7.8243]
[1729128529155,0.38168,2620.1,2620.0,3.6333]
[1729128529555,0.38168,2620.1,2620.0,4.8733]
[1729128531562,0.38168,2620.1,2620.0,5.2731]
[1729128536463,1.62168,2620.1,2620.0,5.2731]
[1729128540069,0.38168,2620.1,2620.0,5.2731]
[1729128540772,0.38168,2620.1,2620.0,2.0653]
[1729128540970,1.62168,2620.1,2620.0,2.0653]
[1729128542865,1.62168,2620.1,2620.0,3.35323648]
[1729128543662,1.62168,2620.1,2620.0,3.73492648]
[1729128543860,12.49248,2620.1,2620.0,0.80428983]
[1729128544063,0.38175,2619.6,2619.5,0.8095]
[1729128544265,1.24,2619.7,2619.5,2.0495]
[1729128544478,0.38175,2619.7,2619.6,1.24]
[1729128547968,0.4184,2620.0,2619.6,1.24]
[1729128548168,0.38173,2619.8,2619.7,0.38173]
[1729128550668,0.38173,2619.8,2619.7,1.62173]
[1729128552064,0.38173,2619.8,2619.7,4.82953]
[1729128553162,2.7124,2620.0,2619.7,4.82953]
[1729128553363,0.38172,2619.9,2619.8,0.38172]
[1729128553572,0.38172,2619.9,2619.8,0.79142]
[1729128553769,0.38172,2619.9,2619.8,2.03142]
[1729128554176,0.38172,2619.9,2619.8,1.6497]
[1729128554370,1.054,2620.1,2620.0,0.38168]
[1729128554674,1.43569,2620.1,2620.0,1.62168]
[1729128555075,1.43569,2620.1,2620.0,1.24]
[1729128555278,0.38169,2620.0,2619.9,2.4389]
[1729128558577,1.62169,2620.0,2619.9,0.8172]
[1729128559790,0.38169,2620.0,2619.9,1.19891]
[1729128559979,0.38169,2620.0,2619.9,0.8172]
[1729128560677,1.62169,2620.0,2619.9,0.8172]
[1729128563185,0.38169,2620.0,2619.9,0.8172]
[1729128568485,0.95418,2620.2,2619.9,2.0572]
[1729128568486,0.38168,2620.2,2619.9,2.0572]
[1729128568683,3.2078,2620.4,2620.0,2.77975254]
[1729128568887,1.82731,2620.6,2620.5,0.38162]
[1729128569087,0.38162,2620.5,2620.4,2.43343]
[1729128569395,0.38162,2620.5,2620.4,5.63624413]
[1729128569690,0.38162,2620.5,2620.4,3.75578973]
[1729128570590,0.38162,2620.5,2620.4,5.25461413]
[1729128571992,1.62162,2620.5,2620.4,4.01461413]
[1729128572480,5.43762,2620.5,2620.4,1.28078973]
[1729128572686,0.38164,2620.4,2620.3,1.4988244]
[1729128572984,0.38165,2620.3,2620.2,3.2078]
[1729128573179,0.38165,2620.3,2620.0,1.202]
[1729128573180,5.0568,2620.3,2620.0,1.202]
[1729128573390,0.38172,2619.8,2619.7,7.3988]
[1729128573586,1.62172,2619.8,2619.7,4.191]
[1729128578095,1.62172,2619.8,2619.7,5.431]
[1729128578293,0.38172,2619.8,2619.7,5.81274]
[1729128578494,0.38172,2619.8,2619.7,1.62174]
[1729128578699,0.38175,2619.7,2619.6,1.62174]
[1729128579987,0.38175,2619.7,2619.6,5.4697659]
[1729128580901,0.38175,2619.7,2619.6,7.97469704]
[1729128581089,0.38175,2619.7,2619.6,5.46979341]
[1729128581693,0.38175,2619.7,2619.6,4.22979341]
[1729128581901,0.38175,2619.7,2619.6,5.46979341]
[1729128582201,0.38175,2619.7,2619.6,7.97472455]
[1729128582399,0.38175,2619.7,2619.6,5.46979341]
[1729128582787,0.38175,2619.7,2619.6,7.97472455]
[1729128583394,0.38175,2619.7,2619.6,5.46979341]
[1729128583702,0.38175,2619.7,2619.6,7.97472455]
[1729128584103,0.38175,2619.7,2619.6,5.46979341]
[1729128585100,0.38175,2619.7,2619.6,7.97472455]
[1729128585498,0.38175,2619.7,2619.6,5.46979341]
[1729128585799,0.38175,2619.7,2619.6,7.97472455]
[1729128586000,0.38175,2619.7,2619.6,7.97478128]
[1729128587098,0.38174,2619.8,2619.7,0.38173]
[1729128587298,0.38174,2619.8,2619.7,5.46984014]
[1729128587501,0.38174,2619.8,2619.7,7.47082739]
[1729128588000,0.38174,2619.8,2619.7,3.84811014]
[1729128588205,1.62174,2619.8,2619.7,5.84917563]
[1729128588908,1.62174,2619.8,2619.7,6.23091563]
[1729128589311,1.62174,2619.8,2619.7,7.47091563]
[1729128590204,5.43854,2619.8,2619.7,2.10875857]
[1729128590397,11.0568,2619.8,2619.5,4.70864717]
[1729128590601,2.80698,2620.0,2619.5,4.70864717]
[1729128590602,1.62175,2619.6,2619.5,4.70864717]
[1729128591098,0.38175,2619.6,2619.5,4.82957]
[1729128591301,0.38175,2619.6,2619.5,5.62227]
[1729128593808,0.38174,2619.7,2619.6,0.38175]
[1729128594105,0.38174,2619.7,2619.6,4.01731549]
[1729128594515,0.3923,2619.9,2619.6,4.19232173]
[1729128594709,0.3923,2619.9,2619.8,1.62172]
[1729128594710,0.77401,2619.9,2619.8,1.62172]
[1729128594913,0.38171,2619.9,2619.8,3.62250996]
[1729128595214,0.38171,2619.9,2619.8,3.1222426]
[1729128595915,0.38171,2619.9,2619.8,0.38172]
[1729128596109,1.24,2620.0,2619.7,2.7405226]
[1729128596313,0.38172,2619.8,2619.7,1.5005226]
[1729128596511,1.62172,2619.8,2619.7,1.8822626]
[1729128596711,0.38172,2619.8,2619.7,1.8822626]
[1729128597316,0.38172,2619.8,2619.7,3.1222626]
[1729128597523,0.38172,2619.8,2619.7,1.62174]
[1729128597827,0.38172,2619.8,2619.7,1.24]
[1729128598621,0.38172,2619.8,2619.7,1.62174]
[1729128600230,0.38172,2619.8,2619.7,1.24]
[1729128600430,0.38174,2619.7,2619.6,0.77625]
[1729128600623,0.80934,2619.7,2619.6,0.77625]
[1729128600819,0.38174,2619.7,2619.6,2.01625]
[1729128601125,0.38174,2619.8,2619.7,0.38173]
[1729128601327,1.24,2619.8,2619.5,2.2932226]
[1729128601529,0.38175,2619.6,2619.5,0.7927]
[1729128602523,0.3818,2619.3,2619.2,4.7083226]
[1729128602829,0.38179,2619.4,2619.3,0.38179]
[1729128603131,0.38179,2619.4,2619.3,1.62179]
[1729128603132,1.43279,2619.4,2619.3,1.62179]
[1729128603432,1.24,2619.6,2619.3,2.7405226]
[1729128603633,1.43275,2619.6,2619.5,1.24]
[1729128603833,0.38178,2619.5,2619.4,0.38178]
[1729128604224,1.43276,2619.6,2619.5,0.38177]
[1729128604533,0.38177,2619.5,2619.4,1.8822926]
[1729128606637,0.38177,2619.5,2619.4,0.38177]
[1729128608540,0.38178,2619.4,2619.3,1.8823026]
[1729128608838,1.051,2619.6,2619.3,1.8823026]
[1729128609033,0.38178,2619.4,2619.3,1.8823026]
[1729128610338,0.38178,2619.4,2619.3,0.38178]
[1729128610728,0.3818,2619.3,2619.2,3.5896]
[1729128610939,0.3818,2619.3,2619.2,6.36657261]
[1729128611335,0.3818,2619.3,2619.2,3.5896]
[1729128611536,0.3818,2619.3,2619.2,3.2078]
[1729128612239,0.38182,2619.1,2619.0,3.0844626]
[1729128612448,0.38182,2619.1,2619.0,1.58394]
[1729128612940,0.38182,2619.1,2619.0,1.2021]
[1729128613128,0.38185,2618.9,2618.8,0.38187]
[1729128613332,0.38187,2618.8,2618.7,0.7964]
[1729128613538,0.76957,2618.8,2618.7,0.7964]
[1729128613735,0.76957,2618.8,2618.7,0.407]
[1729128615034,0.3877,2618.8,2618.6,0.4057]
[1729128615250,0.38188,2618.7,2618.6,0.4057]
[1729128620043,0.38188,2618.7,2618.6,0.7876]
[1729128621148,0.38188,2618.7,2618.6,0.4057]
[1729128621940,0.38188,2618.7,2618.6,0.7876]
[1729128622944,0.38188,2618.7,2618.6,0.4057]
[1729128623344,0.3819,2618.6,2618.5,0.8238]
[1729128623551,3.0619,2618.6,2618.5,0.8238]
[1729128623853,0.3819,2618.6,2618.5,0.8238]
[1729128624850,0.3819,2618.6,2618.4,0.38192]
[1729128624851,0.38191,2618.5,2618.4,0.38192]
[1729128625946,0.38191,2618.5,2618.3,1.62053]
[1729128625947,0.38193,2618.4,2618.3,1.62053]
[1729128626345,1.62192,2618.5,2618.4,0.38193]
[1729128627142,1.24,2618.5,2618.3,1.2386]
[1729128627341,1.62193,2618.4,2618.3,1.62054]
[1729128628149,0.38193,2618.5,2618.3,2.4786]
[1729128628348,1.24,2618.6,2618.4,1.24]
[1729128628648,1.24,2618.9,2618.5,5.40257]
[1729128628951,2.29,2618.9,2618.8,0.57187]
[1729128629255,2.29,2618.9,2618.8,0.38187]
[1729128629648,2.29,2618.9,2618.8,1.63867]
[1729128629649,2.67185,2618.9,2618.8,1.63867]
[1729128629850,1.05,2618.9,2618.8,1.63867]
[1729128630549,1.43185,2618.9,2618.8,1.63867]
[1729128631345,1.43185,2618.9,2618.8,1.2568]
[1729128631658,16.7562,2618.9,2618.2,3.2078]
[1729128631855,16.7562,2618.9,2618.2,4.4527]
[1729128631856,0.38196,2618.3,2618.2,4.4527]
[1729128632444,0.38196,2618.3,2618.2,4.83466]
[1729128632850,0.4112,2618.5,2618.2,4.4527]
[1729128633161,0.38194,2618.3,2618.2,4.83464]
[1729128633856,0.38194,2618.3,2618.2,1.62684]
[1729128636051,0.38192,2618.5,2618.4,0.38193]
[1729128638559,1.05,2618.6,2618.2,4.4527]
[1729128638759,0.38193,2618.4,2618.3,0.38192]
[1729128645266,0.38194,2618.4,2618.3,0.38193]
[1729128645462,3.73,2618.6,2618.2,4.4527]
[1729128645657,0.38194,2618.3,2618.2,4.83464]
[1729128645858,0.38194,2618.3,2618.2,1.62684]
[1729128646362,0.77184,2618.3,2618.2,1.62684]
[1729128647155,0.77184,2618.3,2618.2,1.2449]
[1729128651865,2.01184,2618.3,2618.2,1.2449]
[1729128653168,0.38197,2618.1,2618.0,1.80962743]
[1729128653471,1.62197,2618.1,2618.0,3.08533312]
[1729128653764,1.62197,2618.1,2618.0,1.81091228]
[1729128654765,1.62197,2618.1,2618.0,3.08714121]
[1729128655176,1.24,2618.1,2617.9,1.80023228]
[1729128655366,2.66999,2618.0,2617.9,1.40133228]
[1729128655670,0.382,2617.9,2617.8,1.42893228]
[1729128655869,3.2537,2617.9,2617.8,0.4294]
[1729128656368,0.38201,2617.8,2617.7,0.99953228]
[1729128656575,0.38203,2617.7,2617.6,1.81303228]
[1729128656759,1.62203,2617.7,2617.6,3.0897613]
[1729128656964,1.62203,2617.7,2617.6,3.47180134]
[1729128657370,1.62203,2617.7,2617.6,3.08976134]
[1729128657572,1.62203,2617.7,2617.6,1.81303228]
[1729128657767,3.06203,2617.7,2617.6,1.81303228]
[1729128657968,3.06203,2617.7,2617.6,0.8135]
[1729128658166,3.06203,2617.7,2617.6,1.81303228]
[1729128658463,0.38206,2617.5,2617.4,0.99953228]
[1729128658669,0.38209,2617.3,2617.2,0.99953228]
[1729128658865,3.728,2617.3,2617.2,0.99953228]
[1729128659078,4.11009,2617.3,2617.2,0.99953228]
[1729128659278,3.728,2617.3,2617.1,1.40593228]
[1729128659477,0.3821,2617.2,2617.1,0.4064]
[1729128659776,3.728,2617.3,2617.0,2.92325488]
[1729128659777,0.38212,2617.1,2617.0,0.4232]
[1729128659980,3.06212,2617.1,2617.0,0.4232]
[1729128660478,0.38213,2617.0,2616.9,1.82493228]
[1729128660980,2.68,2617.1,2616.8,4.20733228]
[1729128661169,3.06215,2616.9,2616.8,4.20733228]
[1729128661371,3.06215,2616.9,2616.8,4.20766959]
[1729128661677,2.68,2616.9,2616.6,1.80976959]
[1729128661877,3.06217,2616.7,2616.6,1.80976959]
[1729128662082,4.11117,2616.7,2616.6,0.3909]
[1729128662273,0.38219,2616.6,2616.5,0.99986959]
[1729128662473,3.729,2616.7,2616.4,0.4174]
[1729128662474,0.3822,2616.5,2616.4,0.4174]
[1729128662675,2.68,2616.5,2616.2,1.39076959]
[1729128662970,2.00447,2616.7,2616.2,0.3909]
[1729128662971,3.06223,2616.3,2616.2,0.3909]
[1729128663880,0.38225,2616.2,2616.1,0.4029]
[1729128664577,2.68,2616.3,2616.1,0.4029]
[1729128664772,1.049,2616.2,2616.1,0.78516]
[1729128664976,1.049,2616.2,2616.1,0.4029]
[1729128665682,1.049,2616.2,2616.1,0.78516]
[1729128667288,1.049,2616.2,2616.1,0.4029]
[1729128667289,1.43125,2616.2,2616.1,0.4029]
[1729128667583,1.43125,2616.2,2616.1,0.78516]
[1729128667783,1.43125,2616.2,2616.1,0.4029]
[1729128667983,1.43125,2616.2,2616.1,0.78516]
[1729128668482,1.43125,2616.2,2616.1,0.4029]
[1729128668681,0.85739368,2616.2,2616.1,0.4029]
[1729128669086,0.85739368,2616.2,2616.1,0.78516]
[1729128669290,0.85739368,2616.2,2616.1,0.4029]
[1729128669786,0.85739368,2616.2,2616.1,0.78516]
[1729128670285,0.47514368,2616.2,2616.1,0.78516]
[1729128670479,1.049,2616.2,2616.1,0.78516]
[1729128670884,3.729,2616.2,2616.1,0.78516]
[1729128671078,4.11125,2616.2,2616.1,0.78516]
[1729128671480,3.729,2616.2,2616.1,0.78516]
[1729128671783,2.68,2616.2,2616.1,0.78516]
[1729128671985,3.729,2616.2,2616.1,0.78516]
[1729128672685,3.729,2616.2,2616.1,0.4029]
[1729128672881,3.729,2616.2,2616.0,0.81147]
[1729128672882,0.38226,2616.1,2616.0,0.81147]
[1729128673077,3.729,2616.2,2616.0,0.81147]
[1729128673277,0.38226,2616.1,2616.0,0.81147]
[1729128673589,4.11126,2616.2,2616.1,0.38226]
[1729128675681,0.38226,2616.1,2616.0,0.81147]
[1729128675886,3.8224,2616.1,2615.2,5.16365959]
[1729128676097,0.38232,2615.7,2615.6,0.38232]